Cogmind - Beta 16 @@@ ROGUE MODE // 2025.11.18 @ 20:27:56 Player: Noggity Result: Self-destructed Performance ------------- Evolutions (1) 500 Regions Visited (3) 600 Robots Destroyed (19) 95 Value Destroyed (557) 557 Prototype IDs (2) 40 Alien Tech Used (0) 0 Bonus (89) 89 TOTAL SCORE: 1881 Bonus ------- Follower Combat Kills 89 Cogmind --------- Core Integrity 385/400 Matter 286/300 Energy 250/250 System Corruption 0% Temperature Cool (0) Movement Treading (160) Location -9/Materials Parts ------- > --- POWER (1) -------- Ion Engine > --- PROPULSION (3) --- Light Treads Light Treads > --- UTILITY (2) ------ Large Storage Unit Seismic Detector > --- WEAPON (3) ------- Assault Rifle Assault Rifle Grenade Launcher > --- INVENTORY (15) --- Ion Engine Heat Sink Improved Heat Sink Huge Storage Unit Structural Scanner Core Shielding Assault Rifle Assault Rifle Mining Laser Peak State ------------ > --- POWER ------------ Ion Engine > --- PROPULSION ------- Light Treads Light Treads > --- UTILITY ---------- Large Storage Unit Seismic Detector > --- WEAPON ----------- Assault Rifle Assault Rifle Grenade Launcher > --- INVENTORY -------- Ion Engine Heat Sink Improved Heat Sink Huge Storage Unit Structural Scanner Core Shielding Assault Rifle Assault Rifle Mining Laser [Rating: 9] Favorites ----------- Power Ion Engine Engine Ion Engine Propulsion Light Treads Treads Light Treads Utility Seismic Detector Device Seismic Detector Storage Large Storage Unit Weapon Assault Rifle Ballistic Gun Assault Rifle Launcher Grenade Launcher Build | -11 -10 -10 -9 ------- Run | Yrd Mat Min Mat Slots Evolved 2 | . . . 2 Power . | . . . . Propulsion 1 | . . . 1 Utility . | . . . . Weapon 1 | . . . 1 Parts Attached 12 | 8 2 1 1 Power 1 | 1 . . . Engine 1 | 1 . . . Core . | . . . . Reactor . | . . . . Propulsion 2 | 2 . . . Treads 2 | 2 . . . Leg . | . . . . Wheel . | . . . . Hover . | . . . . Flight . | . . . . Utility 4 | 2 2 . . Device 1 | 1 . . . Storage 3 | 1 2 . . Processor . | . . . . Hackware . | . . . . Protection . | . . . . Artifact . | . . . . Weapon 5 | 3 . 1 1 Energy Gun . | . . . . Energy Cannon . | . . . . Ballistic Gun 4 | 3 . . 1 Ballistic Cannon . | . . . . Launcher 1 | . . 1 . Special Weapon . | . . . . Impact Weapon . | . . . . Slashing Weapon . | . . . . Piercing Weapon . | . . . . Special Melee Weapon . | . . . . Unidentified Prototypes . | . . . . Parts Lost . | . . . . Power . | . . . . Propulsion . | . . . . Utility . | . . . . Weapon . | . . . . Highest Loss Streak . | . . . . To Critical Strikes . | . . . . Average Backups 7 | 1 6 9 9 Power . | . 1 1 1 Propulsion . | . . . . Utility 3 | . 2 4 5 Weapon 2 | . 2 4 3 Tool/Special . | . . . . Unused Backups 7 | . . . 7 Power 1 | . . . 1 Propulsion . | . . . . Utility 4 | . . . 4 Weapon 2 | . . . 2 Tool/Special . | . . . . Average Slot Usage (%) 99 | . 100 100 84 Engine 13 | . 14 14 11 Treads 27 | . 28 28 22 Device 13 | . 14 14 11 Storage 13 | . 14 14 11 Ballistic Gun 27 | . 28 27 18 Peak Build Rating 9 | 7 7 8 9 Average Rating 7 | 5 7 7 8 On Entrance 5 | . 7 7 8 Avg Prop Armor Cover (%) . | . . . . Naked Turns . | . . . . Heaviest Build 33 | 15 30 31 33 Greatest Support 40 | 40 40 40 40 Greatest Overweight (x) . | . . . . Average Overweight (x) . | . . . . Largest Inventory Capacity 25 | 8 25 15 15 Average Capacity 12 | 6 12 15 15 Most Carried 10 | 3 9 10 10 Average Carried 7 | 1 6 9 9 Final Capacity 15 | 8 15 15 15 Final Carried 10 | 2 9 10 9 Class Distribution -------------------- 95% | Mutant 4% | Gunner Dominant Class ---------------- Mutant | -10/Materials Mutant | -10/Mines Gunner | -9/Materials Resources | -11 -10 -10 -9 ----------- Run | Yrd Mat Min Mat Matter Collected 670 | 298 248 69 55 Remotely . | . . . . Salvage Created 775 | 119 497 47 112 Parts 39 | 5 27 1 6 Haulers Intercepted . | . . . . Recyclers Shooed 2 | . 2 . . Parts Field Recycled . | . . . . Retrieved Matter . | . . . . Parts Self-Destructed . | . . . . Prevented . | . . . . Parts Restored . | . . . . Kills | -11 -10 -10 -9 ------- Run | Yrd Mat Min Mat Combat Hostiles Destroyed 15 | . 11 1 3 Guns 15 | . 11 1 3 Classes Destroyed 5 | 2 2 . 1 Tunneler 1 | 1 . . . Recycler 1 | 1 . . . Watcher 2 | . 2 . . Swarmer 1 | . . . 1 Grunt 14 | . 11 1 2 Best Kill Streak 4 | 1 4 1 3 Combat Bots Only 4 | . 4 1 3 Max Kills in Single Turn 1 | 1 1 1 1 Gunslinging . | . . . . Exploded . | . . . . Melee . | . . . . Uniques/NPCs Destroyed . | . . . . Combat | -11 -10 -10 -9 -------- Run | Yrd Mat Min Mat Hostile Shots Fired 57 | . 32 11 14 Missed 19 | . 8 6 5 Hits 38 | . 24 5 9 Projectile 38 | . 24 5 9 Critical Strikes 3 | . 1 2 . Damage Taken 432 | . 268 78 86 Core 84 | . 53 16 15 Absorbed by Shields . | . . . . Core Remaining (%) 86 | 100 . 72 . Volleys Fired 56 | 3 41 5 7 Largest 3 | 2 2 2 3 Hottest 70 | 40 40 40 70 Shots Fired 111 | 6 81 10 14 Gun 110 | 6 81 10 13 Cannon . | . . . . Launcher 1 | . . . 1 Special . | . . . . Kinetic 110 | 6 81 10 13 Thermal . | . . . . Explosive 1 | . . . 1 Electromagnetic . | . . . . Robot Hit Streak 13 | 1 13 5 2 Robot Miss Streak 4 | 1 2 1 4 Penetration Max . | . . . . Secondary Targets 2 | . 1 . 1 Max Gunslinging Chain 1 | . 1 . 1 Shots Hit Robots 71 | 3 53 9 6 Core Hits 38 | 3 26 4 5 Critical Kills 1 | . . . 1 Critical Parts Destroyed 1 | . 1 . . Critical Strikes 2 | . 1 . 1 Destroy 2 | . 1 . 1 Melee Attacks . | . . . . Impact . | . . . . Slashing . | . . . . Piercing . | . . . . Sneak Attacks . | . . . . Combat Hostiles . | . . . . Follow-up Attacks . | . . . . Damage Inflicted 975 | 38 697 115 125 Guns 946 | 38 697 115 96 Cannons . | . . . . Explosions 29 | . . . 29 Melee . | . . . . Ramming . | . . . . Kinetic 946 | 38 697 115 96 Thermal . | . . . . Explosive 29 | . . . 29 Electromagnetic . | . . . . Impact . | . . . . Slashing . | . . . . Piercing . | . . . . Highest Corruption 1 | . 1 1 . Average Corruption 1 | . 1 1 . Corruption Purged . | . . . . Corruption Blocked . | . . . . Effects 9 | . 5 4 . Message Errors 2 | . 1 1 . Matter Fused 2 | . 2 . . Data Loss (minor) 3 | . 1 2 . Alerts 1 | . . 1 . Weapon Failures 1 | . 1 . . Overload Shots . | . . . . Overflow Damage . | . . . . Projectiles . | . . . . Explosions . | . . . . Melee . | . . . . Knockbacks . | . . . . Impact . | . . . . Kinetic . | . . . . Secondary . | . . . . Self-Inflicted Damage . | . . . . Shots . | . . . . Rammed . | . . . . Targets Rammed . | . . . . Kicked . | . . . . Crushed . | . . . . Highest Temperature 33 | . 20 33 . Average Temperature 13 | . 9 16 . Received Heat Transfer 264 | . 168 78 18 Siege Activations . | . . . . Martial Activations . | . . . . Shielding Activations . | . . . . Robots Disrupted . | . . . . Combat Hostiles . | . . . . Robots Corrupted . | . . . . Combat Hostiles . | . . . . Parts Fried . | . . . . Impact Corruptions . | . . . . Robots Melted . | . . . . Combat Hostiles . | . . . . Parts Melted . | . . . . Heat Transferred . | . . . . Parts Sabotaged . | . . . . Parts Stolen . | . . . . Parts Stripped . | . . . . Power Chain Reactions . | . . . . Alert | -11 -10 -10 -9 ------- Run | Yrd Mat Min Mat Maximum Alert Level . | . . . . Low Security (%) 100 | 100 100 100 100 Level 1 . | . . . . Level 2 . | . . . . Level 3 . | . . . . Level 4 . | . . . . Level 5 . | . . . . High Security . | . . . . Max Security . | . . . . Peak Influence 188 | 5 90 56 188 Initial . | . . . . Average 26 | 1 33 8 119 Influence Increases 565 | 10 301 56 198 Destroy 0b10 Robot/C 400 | . 220 40 140 Destroy 0b10 Robot/NC 20 | 10 10 . . Destroy Leader 94 | . 54 10 30 Allied During Kill 26 | . . 6 20 Successful Hack 16 | . 16 . . Destroy Structure 9 | . 1 . 8 Influence Decreases 387 | 10 301 56 20 Time Decay 362 | 10 276 56 20 Purge Threat 25 | . 25 . . Squads Dispatched 5 | . 5 . . Investigation 1 | . 1 . . Extermination . | . . . . Reinforcement 4 | . 4 . . Assault . | . . . . Garrison . | . . . . Intercept . | . . . . Searches Triggered . | . . . . Construction Impeded . | . . . . Haulers Reinforced . | . . . . Active Scanning Responses . | . . . . Cargo Convoy Interrupts . | . . . . Stealth | -11 -10 -10 -9 --------- Run | Yrd Mat Min Mat Distress Signals 2 | . 2 . . Communications Jammed . | . . . . Distress Signals . | . . . . Times Spotted 29 | . 21 2 6 Peak Tracking Total 5 | . 5 2 4 Tactical Retreats . | . . . . Traps | -11 -10 -10 -9 ------- Run | Yrd Mat Min Mat Traps Triggered 2 | . 2 . . Indirectly . | . . . . Trap Hack Attempts . | . . . . Triggered . | . . . . Disarmed . | . . . . Reprogrammed . | . . . . Reused . | . . . . Traps Extracted . | . . . . Installed . | . . . . Triggered . | . . . . Machines | -11 -10 -10 -9 ---------- Run | Yrd Mat Min Mat Machines Disabled . | . . . . Max in Single Turn . | . . . . Machines Repaired . | . . . . Machines Dismantled . | . . . . Machines Sabotaged . | . . . . Overloaded Fab Kills . | . . . . Hacking | -11 -10 -10 -9 --------- Run | Yrd Mat Min Mat Machines Accessed 4 | . 4 . . Terminals 3 | . 3 . . Fabricators . | . . . . Repair Stations . | . . . . Recycling Units 1 | . 1 . . Scanalyzers . | . . . . Garrison Access . | . . . . Total Hacks 14 | . 14 . . Successful 7 | . 7 . . Failed 7 | . 7 . . Catastrophic 1 | . 1 . . Database Lockouts . | . . . . Manual 9 | . 9 . . Terminals 13 | . 13 . . Fabricators . | . . . . Repair Stations . | . . . . Recycling Units 1 | . 1 . . Scanalyzers . | . . . . Garrison Access . | . . . . Terminal Hacks 4 | . 4 . . Robot Analysis 2 | . 2 . . Prototype ID Bank 1 | . 1 . . Unreport Threat 1 | . 1 . . Fabricator Hacks . | . . . . Repair Station Hacks . | . . . . Recycling Unit Hacks 1 | . 1 . . Retrieve Components 1 | . 1 . . Scanalyzer . | . . . . Garrison Access Hacks . | . . . . Unauthorized Hacks 2 | . 2 . . Terminals 2 | . 2 . . Botnet 1 | . 1 . . Operators 1 | . 1 . . Fabricators . | . . . . Repair Stations . | . . . . Recycling Units . | . . . . Scanalyzers . | . . . . Garrison Access . | . . . . Data Cores Recovered . | . . . . Used . | . . . . Hacking Detections 3 | . 3 . . Full Trace Events . | . . . . Feedback Events . | . . . . Feedback Blocked . | . . . . Robot Schematics Acquired . | . . . . Robots Built . | . . . . Authchips . | . . . . Time . | . . . . Total Robot Build Rating . | . . . . Part Schematics Acquired . | . . . . Parts Built . | . . . . Authchips . | . . . . Time . | . . . . Total Part Build Rating . | . . . . Part Studies Acquired . | . . . . Parts Repaired . | . . . . Time . | . . . . Parts Recycled . | . . . . Recycled Matter . | . . . . Retrieved Matter . | . . . . Retrieved Components 3 | . 3 . . Parts Scanalyzed . | . . . . Part Schematics Acquired . | . . . . Parts Damaged . | . . . . Bothacking | -11 -10 -10 -9 ------------ Run | Yrd Mat Min Mat Used RIF Installer . | . . . . Robots Hacked . | . . . . Non-combat . | . . . . Combat . | . . . . Robot Hacks Applied . | . . . . Relay Couplers Released . | . . . . Fabnet Peak Effective % . | . . . . Robots Rewired . | . . . . Allies Hacked . | . . . . Hacks Repelled . | . . . . Allies | -11 -10 -10 -9 -------- Run | Yrd Mat Min Mat Total Allies 2 | . . 2 . Largest Group 2 | . . 2 2 Highest-Rated Group 39 | . . 39 39 Highest-Rated Ally 31 | . . 31 31 Total Orders . | . . . . Ally Attacks 17 | . . 5 12 Total Damage 299 | . . 86 213 Kills 5 | . . 1 4 Allies Corrupted . | . . . . Allies Melted . | . . . . Intel | -11 -10 -10 -9 ------- Run | Yrd Mat Min Mat Active Infowar (turns) 1372 | 43 850 420 59 Seismic 1372 | 43 850 420 59 Robot Analysis Total 2 | . 2 . . Derelict Logs Recovered . | . . . . Drone Launches . | . . . . Drone Recoveries . | . . . . Exploration | -11 -10 -10 -9 ------------- Run | Yrd Mat Min Mat Turns Passed 1442 | 113 850 420 59 Spaces Moved 739 | 53 413 250 23 Core 2 | 2 . . . Treads 737 | 51 413 250 23 Legs . | . . . . Wheels . | . . . . Hover . | . . . . Flight . | . . . . Fastest Speed 50 | 50 160 160 160 Average Speed 159 | 155 160 160 160 Slowest Speed 160 | 160 160 160 160 Overloaded Moves . | . . . . Propulsion Burnouts . | . . . . Robots Hopped . | . . . . Potential Cave-ins . | . . . . Cave-ins Triggered . | . . . . Exploration Rate (%) 32 | 4 75 47 4 Regions Visited 3 Branch Regions 1 Pre-discovered Areas . | . . . . Known Exits Taken . | . . . . Unknown Exits Taken 3 | 1 1 1 . Scrap Searched 2 | . . 2 . Spaces Dug . | . . . . Terrain Destroyed 8 | . . . 8 Melee . | . . . . Projectile . | . . . . AOE 8 | . . . 8 Terrain Rammed . | . . . . Walls Destroyed . | . . . . Machines Disabled . | . . . . Actions | -11 -10 -10 -9 --------- Run | Yrd Mat Min Mat Total 884 | 74 519 260 31 Wait 66 | 9 55 2 . Move 736 | 52 412 249 23 Hop . | . . . . Pick Up 11 | 2 7 2 . Fast Attach 6 | 6 . . . Attach 2 | 1 . . 1 Detach . | . . . . Swap 5 | 1 3 1 . Drop 2 | . 1 1 . Fire 56 | 3 41 5 7 Melee . | . . . . Ram . | . . . . Kick . | . . . . Crush . | . . . . Escape Stasis . | . . . . Rewire . | . . . . Trap . | . . . . Miscellaneous . | . . . . Route ------- -11/Scrapyard -10/Materials (discovered 4 exits: [*Mat x2] / [*Min x2]) -10/Mines -9/Materials History --------- Turn | Location | Event 56 | -11/Scrapyard | Discovered new exit (range 15) 114 | -11/Scrapyard | Entered Materials 300 | -10/Materials | Build established: Mutant 332 | -10/Materials | Discovered new exit (range 6) 545 | -10/Materials | Discovered new exit (range 4) 685 | -10/Materials | Discovered new exit (range 5) 800 | -10/Materials | Discovered new exit (range 8) 964 | -10/Materials | Entered Mines 1367 | -10/Mines | Discovered new exit (range 10) 1384 | -10/Mines | Entered Materials 1384 | -9/Materials | Accompanied by 2 allies 1384 | -9/Materials | Evolved 2 slots: Propulsion x1, Weapon x1 1389 | -9/Materials | Led the pair of lost Derelicts to an unsafe place 1443 | -9/Materials | Self-destructed Last Messages --------------- 01415_ R-06 Scavenger collects Lgt. Assault Rifle. 01416_ S-10 Pest destroyed. 01419_ K-01 Serf collects debris. 01419_ R-06 Scavenger collects Lgt. Assault Rifle. 01422_ Acquired 30 matter. 01425_ Acquired 25 matter. 01429_ R-06 Scavenger collects Imp. Ion Engine. 01430_ K-01 Serf collects debris. 01432_ U-05 Engineer lays Concrete. 01433_ K-01 Serf collects debris. 01434_ U-05 Engineer lays Concrete. 01435_ K-01 Serf collects debris. 01437_ U-05 Engineer builds a Wall. 01438_ K-01 Serf collects debris. 01441_ U-05 Engineer lays Concrete. 01441_ K-01 Serf collects debris. 01442_ U-05 Engineer lays Concrete. 01442_ K-01 Serf collects debris. Map ----- +----------------------------------------------------+ | | | | | | | | | | | | | | | | | ?????????????????????????????????????????????????? | | ?????????????????????????????????????????????????? | | ?????????????????????????????????????????????????? | | ?????????????????????????????????????????????????? | | ?????????????????????????????????????????????????? | | ?????????????????????????????????????????????????? | | ?????????????????????????????????????????????????? | | ?????????????????????????????????????????????????? | | ?????????????????????????????????????????????????? | | ?????????????????????????????????????????????????? | | ?????????????????????????????????????????????????? | | ?????????????????????????????????????????????????? | | ????????????????????????????????#####????????????? | | ????????????????????????????????# #????#####???? | | ????????????????????????????????# #??? #???? | | ????????????????????????????????# #??? """????? | | ?????????????# u############## #?? """#???? | | ?????????????# k@ g # """#???? | | ?????????????# !% % %! z + #???? | | ?????????????# =k= r # """#???? | | ??????????? k###+##########u=[ """#???? | | ???????????######??????????????# = = """#???? | | ???????????????????????????????# " # #???? | | ???????????????????????????????# % ######+###???? | | ?????????????????????????????? #???????????? | | ???????????????????????????? #???????????? | | ??????????????????????????? #???????????? | | ?????????????????????????# #########???????????? | | ?????????????????????????# ????????????????????? | | ?????????????????????????# ?????????????????????? | | ?????????????????????????# ??????????????????????? | | ?????????????????????????#???????????????????????? | | ?????????????????????????????????????????????????? | | ?????????????????????????????????????????????????? | | ?????????????????????????????????????????????????? | | ?????????????????????????????????????????????????? | | ?????????????????????????????????????????????????? | | ?????????????????????????????????????????????????? | | ?????????????????????????????????????????????????? | | ?????????????????????????????????????????????????? | | ?????????????????????????????????????????????????? | | ?????????????????????????????????????????????????? | +----------------------------------------------------+ Best States ------------- Heat Dissipation 28 Energy Generation 10 Energy Capacity 250 Matter Stores 300 Matter Capacity 300 Sight Range 16 Terrain Scan Density 10 Evasion (%) 40 Recoil Reduction 2 Item Schematics ----------------- None Robot Schematics ------------------ None Fabricated ------------ Nothing Repaired ---------- Nothing Studied --------- None Alien Tech Used ----------------- None Achievements -------------- None Challenges ------------ None Game ------ Seed ChipHugeHumpback Manual? 0 Play Time 00:18:45 Cumulative 37.5 hours Start 2025.11.18 @ 19:51:01 End 2025.11.18 @ 20:27:56 Sessions 1 Manual Loads 0 Difficulty Rogue Special Mode None Game No. 29 Rogue 29 Adventurer 0 Explorer 0 Win Type - Total 0 Types 0/0/0/0/0/0/0/0/0/0 Lore% 25 Gallery% 36 Achievement% 19 Wizard Run 0 Options --------- Layout 2 ASCII 0 Keyboard 1 Movement Numpad Keybinds 0 Fullscreen 1 Font 24/Smallcaps Map View 50x44 Zoom Use 0% Tactical HUD 1 Map Filters NONE Filters NONE Steam 1 RUN: 3bae2df8-f76a-4125-b23c-d16189f9f494